[Event "Early-Titled-Tuesday-Blitz-May-07-2024"]
[Site "Chess.com"]
[Date "2024.05.07"]
[Round "5"]
[White "Iball95"]
[Black "miragha_yev"]
[Result "0-1"]
[WhiteElo "2916"]
[BlackElo "2835"]
[TimeControl "180+1"]
[EndTime "9:00:00 PDT"]
[Termination "miragha_yev won by resignation"]

1. e4 {[%clk 0:02:59.7]} 1... c6 {[%clk 0:03:00.9]} 2. d4 {[%clk 0:02:59.9]}
2... d5 {[%clk 0:03:00.1]} 3. exd5 {[%clk 0:03:00.8]} 3... cxd5 {[%clk 0:03:01]}
4. c4 {[%clk 0:03:01.4]} 4... Nf6 {[%clk 0:03:00]} 5. Nc3 {[%clk 0:03:01.9]}
5... Nc6 {[%clk 0:03:00.6]} 6. Nf3 {[%clk 0:03:02.2]} 6... a6 {[%clk 0:02:59.5]}
7. h3 {[%clk 0:03:02.8]} 7... g6 {[%clk 0:02:58.3]} 8. cxd5 {[%clk 0:02:59.9]}
8... Nxd5 {[%clk 0:02:59.2]} 9. Bc4 {[%clk 0:03:00.4]} 9... Nxc3 {[%clk
0:02:58.8]} 10. bxc3 {[%clk 0:02:51]} 10... Bg7 {[%clk 0:02:57.7]} 11. O-O
{[%clk 0:02:50.7]} 11... O-O {[%clk 0:02:58.3]} 12. Re1 {[%clk 0:02:49.1]} 12...
b5 {[%clk 0:02:58]} 13. Bb3 {[%clk 0:02:47.5]} 13... Bb7 {[%clk 0:02:58.5]} 14.
Bg5 {[%clk 0:02:47.2]} 14... Re8 {[%clk 0:02:49.7]} 15. Qe2 {[%clk 0:02:23.2]}
15... Qd6 {[%clk 0:02:45.5]} 16. Rad1 {[%clk 0:02:19.2]} 16... e6 {[%clk
0:02:41.6]} 17. d5 {[%clk 0:02:11.6]} 17... Qc5 {[%clk 0:01:39.4]} 18. dxc6
{[%clk 0:02:05.4]} 18... Qxc6 {[%clk 0:01:40.3]} 19. c4 {[%clk 0:01:56.6]} 19...
h6 {[%clk 0:01:38]} 20. cxb5 {[%clk 0:01:53.4]} 20... Qxb5 {[%clk 0:01:34.6]}
21. Qxb5 {[%clk 0:01:52.8]} 21... axb5 {[%clk 0:01:33.9]} 22. Be3 {[%clk
0:01:49.3]} 22... g5 {[%clk 0:01:29.9]} 23. Bd4 {[%clk 0:01:37.5]} 23... Rec8
{[%clk 0:01:23.2]} 24. Bxg7 {[%clk 0:01:36.5]} 24... Kxg7 {[%clk 0:01:24.1]} 25.
Rd7 {[%clk 0:01:36.4]} 25... Bc6 {[%clk 0:01:20.2]} 26. Rd2 {[%clk 0:01:36.3]}
26... Bxf3 {[%clk 0:01:17.2]} 27. gxf3 {[%clk 0:01:37.2]} 27... Kf6 {[%clk
0:01:13.9]} 28. Kg2 {[%clk 0:01:35.2]} 28... Rd8 {[%clk 0:01:12.2]} 29. Rxd8
{[%clk 0:01:33.6]} 29... Rxd8 {[%clk 0:01:13.1]} 30. Re4 {[%clk 0:01:33.8]}
30... Rc8 {[%clk 0:01:10.8]} 31. f4 {[%clk 0:01:30.1]} 31... Rc5 {[%clk
0:01:11.4]} 32. fxg5+ {[%clk 0:01:29.6]} 32... Rxg5+ {[%clk 0:01:09.5]} 33. Kf3
{[%clk 0:01:29]} 33... Rh5 {[%clk 0:01:08.7]} 34. h4 {[%clk 0:01:27.3]} 34...
Rc5 {[%clk 0:01:06.4]} 35. Rf4+ {[%clk 0:01:26.8]} 35... Kg6 {[%clk 0:01:04]}
36. Rb4 {[%clk 0:01:26]} 36... h5 {[%clk 0:01:01.7]} 37. Ke3 {[%clk 0:01:20.7]}
37... e5 {[%clk 0:00:59.8]} 38. Bd1 {[%clk 0:01:15.2]} 38... f5 {[%clk
0:00:55.8]} 39. f4 {[%clk 0:01:15.3]} 39... e4 {[%clk 0:00:53.8]} 40. Be2 {[%clk
0:01:09.2]} 40... Rc2 {[%clk 0:00:50.9]} 41. Rxb5 {[%clk 0:01:07.4]} 41... Rxa2
{[%clk 0:00:50.9]} 42. Rb6+ {[%clk 0:01:07.6]} 42... Kg7 {[%clk 0:00:48.3]} 43.
Bxh5 {[%clk 0:01:08.1]} 43... Rh2 {[%clk 0:00:47.6]} 44. Bg6 {[%clk 0:01:04.9]}
44... Rh3+ {[%clk 0:00:47.2]} 45. Ke2 {[%clk 0:01:03.2]} 45... Rxh4 {[%clk
0:00:44.4]} 46. Ke3 {[%clk 0:01:01.8]} 46... Rh6 {[%clk 0:00:40.9]} 47. Bxf5
{[%clk 0:00:46]} 47... Rxb6 {[%clk 0:00:36.4]} 48. Bxe4 {[%clk 0:00:46.6]} 48...
Kf6 {[%clk 0:00:37.1]} 49. Kd4 {[%clk 0:00:46.6]} 49... Rb4+ {[%clk 0:00:35.8]}
50. Ke3 {[%clk 0:00:46.9]} 50... Ra4 {[%clk 0:00:36.4]} 51. Kf3 {[%clk
0:00:47.6]} 51... Ra3+ {[%clk 0:00:36.6]} 52. Kg4 {[%clk 0:00:48]} 52... Ra1
{[%clk 0:00:36.6]} 53. Kf3 {[%clk 0:00:48.2]} 53... Rf1+ {[%clk 0:00:36.6]} 54.
Ke3 {[%clk 0:00:48.7]} 54... Ke6 {[%clk 0:00:36.4]} 55. Bd3 {[%clk 0:00:45.6]}
55... Re1+ {[%clk 0:00:36.4]} 56. Kf2 {[%clk 0:00:45.6]} 56... Ra1 {[%clk
0:00:37.2]} 57. Be4 {[%clk 0:00:45.8]} 57... Ra3 {[%clk 0:00:36.8]} 58. Ke2
{[%clk 0:00:46.2]} 58... Kd6 {[%clk 0:00:37.3]} 59. Kf2 {[%clk 0:00:46.6]} 59...
Kc5 {[%clk 0:00:38]} 60. Bf3 {[%clk 0:00:45.9]} 60... Kd4 {[%clk 0:00:38.3]} 61.
Kg3 {[%clk 0:00:46.3]} 61... Ke3 {[%clk 0:00:37.9]} 62. Bc6 {[%clk 0:00:31.7]}
62... Rc3 {[%clk 0:00:37.5]} 63. Bb7 {[%clk 0:00:30.9]} 63... Rc7 {[%clk
0:00:37.3]} 64. Bd5 {[%clk 0:00:27.7]} 64... Rg7+ {[%clk 0:00:37.1]} 65. Kh4
{[%clk 0:00:24.1]} 65... Kxf4 {[%clk 0:00:37.4]} 66. Kh5 {[%clk 0:00:22.1]}
66... Rg5+ {[%clk 0:00:37.4]} 0-1

[Event "Early-Titled-Tuesday-Blitz-May-07-2024"]
[Site "Chess.com"]
[Date "2024.05.07"]
[Round "5"]
[White "BirdMaster3000"]
[Black "ImportedItalianMaple"]
[Result "0-1"]
[WhiteElo "2621"]
[BlackElo "2506"]
[TimeControl "180+1"]
[EndTime "9:00:01 PDT"]
[Termination "ImportedItalianMaple won on time"]

1. f4 {[%clk 0:03:00.9]} 1... Nh6 {[%clk 0:02:59]} 2. Nf3 {[%clk 0:03:00.7]}
2... d5 {[%clk 0:02:59.2]} 3. d3 {[%clk 0:03:01.2]} 3... Bg4 {[%clk 0:02:58.9]}
4. e4 {[%clk 0:02:58.2]} 4... dxe4 {[%clk 0:02:58.2]} 5. dxe4 {[%clk 0:02:59.1]}
5... Qxd1+ {[%clk 0:02:58.4]} 6. Kxd1 {[%clk 0:03:00]} 6... e5 {[%clk
0:02:53.9]} 7. h3 {[%clk 0:02:49.7]} 7... Bxf3+ {[%clk 0:02:49.2]} 8. gxf3
{[%clk 0:02:50]} 8... Nc6 {[%clk 0:02:46.7]} 9. Bb5 {[%clk 0:02:48.2]} 9...
O-O-O+ {[%clk 0:02:46.6]} 10. Bd3 {[%clk 0:02:34.8]} 10... f5 {[%clk 0:02:32]}
11. Nc3 {[%clk 0:02:22.2]} 11... Bd6 {[%clk 0:02:04.4]} 12. Rg1 {[%clk
0:02:14.6]} 12... Rd7 {[%clk 0:01:34.7]} 13. exf5 {[%clk 0:01:56.1]} 13... exf4
{[%clk 0:01:31.1]} 14. f6 {[%clk 0:01:35]} 14... gxf6 {[%clk 0:01:29.6]} 15. Ne4
{[%clk 0:01:30.4]} 15... Be5 {[%clk 0:01:24.7]} 16. Ke2 {[%clk 0:01:22.2]} 16...
Nf5 {[%clk 0:01:18.1]} 17. c3 {[%clk 0:01:21.1]} 17... Rhd8 {[%clk 0:01:10.6]}
18. Bc4 {[%clk 0:01:17.8]} 18... Re7 {[%clk 0:00:58.4]} 19. Bd2 {[%clk
0:01:15.4]} 19... Ng3+ {[%clk 0:00:57]} 20. Kd1 {[%clk 0:00:48.4]} 20... Nxe4
{[%clk 0:00:37.7]} 21. fxe4 {[%clk 0:00:48.6]} 21... f3 {[%clk 0:00:38.1]} 22.
Kc2 {[%clk 0:00:48.1]} 22... Bh2 {[%clk 0:00:26.6]} 23. Rh1 {[%clk 0:00:36.3]}
23... Bg3 {[%clk 0:00:26.2]} 24. Rag1 {[%clk 0:00:36.1]} 24... Bd6 {[%clk
0:00:16.5]} 25. Rf1 {[%clk 0:00:30.4]} 25... Ne5 {[%clk 0:00:16.9]} 26. Bb3
{[%clk 0:00:25.6]} 26... Rg7 {[%clk 0:00:16.9]} 27. Be3 {[%clk 0:00:24.1]} 27...
Kb8 {[%clk 0:00:15.6]} 28. Rhg1 {[%clk 0:00:22.5]} 28... Rg2+ {[%clk 0:00:14.8]}
29. Rxg2 {[%clk 0:00:18.3]} 29... fxg2 {[%clk 0:00:15.7]} 30. Rxf6 {[%clk
0:00:18.8]} 30... Rf8 {[%clk 0:00:12.4]} 31. Rxf8+ {[%clk 0:00:16.6]} 31... Bxf8
{[%clk 0:00:13.3]} 32. Kd1 {[%clk 0:00:14.4]} 32... Nf3 {[%clk 0:00:13.4]} 33.
Be6 {[%clk 0:00:12.5]} 33... g1=Q+ {[%clk 0:00:13.4]} 34. Bxg1 {[%clk
0:00:12.3]} 34... Nxg1 {[%clk 0:00:14.3]} 35. Bg4 {[%clk 0:00:11.6]} 35... h5
{[%clk 0:00:12.7]} 36. Bf5 {[%clk 0:00:08.7]} 36... Nf3 {[%clk 0:00:13]} 37. Ke2
{[%clk 0:00:09.3]} 37... Ne5 {[%clk 0:00:12.7]} 38. Ke3 {[%clk 0:00:06.7]} 38...
Bd6 {[%clk 0:00:09.5]} 39. Kf4 {[%clk 0:00:04.5]} 39... Nc4+ {[%clk 0:00:08.8]}
40. Kg5 {[%clk 0:00:05.1]} 40... Nxb2 {[%clk 0:00:09.3]} 41. Kxh5 {[%clk
0:00:05.6]} 41... Nd1 {[%clk 0:00:09.6]} 42. c4 {[%clk 0:00:05.5]} 42... Ne3
{[%clk 0:00:09.7]} 43. Kg6 {[%clk 0:00:05.8]} 43... Nxc4 {[%clk 0:00:08.9]} 44.
h4 {[%clk 0:00:05.9]} 44... b5 {[%clk 0:00:08.8]} 45. h5 {[%clk 0:00:05.6]}
45... Be5 {[%clk 0:00:09.4]} 46. Be6 {[%clk 0:00:05.3]} 46... Nd6 {[%clk
0:00:08.8]} 47. h6 {[%clk 0:00:04.7]} 47... a5 {[%clk 0:00:07.1]} 48. Bd5 {[%clk
0:00:04.1]} 48... Ka7 {[%clk 0:00:07.2]} 49. Kh7 {[%clk 0:00:04.1]} 49... Kb6
{[%clk 0:00:07.5]} 50. Kg8 {[%clk 0:00:03.5]} 50... c6 {[%clk 0:00:08]} 51. Be6
{[%clk 0:00:03.9]} 51... Nxe4 {[%clk 0:00:08.5]} 52. Bf5 {[%clk 0:00:01.4]}
52... Nc5 {[%clk 0:00:08.9]} 53. Kf7 {[%clk 0:00:01.4]} 53... b4 {[%clk
0:00:09.1]} 54. Kg8 {[%clk 0:00:01.6]} 54... a4 {[%clk 0:00:08.8]} 55. h7 {[%clk
0:00:02.5]} 55... b3 {[%clk 0:00:09]} 56. axb3 {[%clk 0:00:02.6]} 56... axb3
{[%clk 0:00:09.9]} 57. Bb1 {[%clk 0:00:02.4]} 57... Na4 {[%clk 0:00:09.7]} 0-1

[Event "Early-Titled-Tuesday-Blitz-May-07-2024"]
[Site "Chess.com"]
[Date "2024.05.07"]
[Round "5"]
[White "rk12387"]
[Black "Oleg_Papayan"]
[Result "0-1"]
[WhiteElo "2215"]
[BlackElo "2673"]
[TimeControl "180+1"]
[EndTime "9:00:01 PDT"]
[Termination "Oleg_Papayan won by checkmate"]

1. e4 {[%clk 0:02:59.4]} 1... d5 {[%clk 0:02:59.8]} 2. exd5 {[%clk 0:02:59.2]}
2... Qxd5 {[%clk 0:03:00.7]} 3. Nc3 {[%clk 0:02:58.9]} 3... Qd8 {[%clk
0:03:01.6]} 4. d4 {[%clk 0:02:59.2]} 4... c6 {[%clk 0:03:01.4]} 5. Nf3 {[%clk
0:02:59.1]} 5... Bf5 {[%clk 0:03:01.8]} 6. Bc4 {[%clk 0:02:58.5]} 6... e6 {[%clk
0:03:01.9]} 7. Ne5 {[%clk 0:02:57.4]} 7... Nd7 {[%clk 0:03:02.4]} 8. Qf3 {[%clk
0:02:46.8]} 8... Nxe5 {[%clk 0:03:00.3]} 9. dxe5 {[%clk 0:02:47.2]} 9... Qd4
{[%clk 0:03:00.9]} 10. Qe2 {[%clk 0:02:42.7]} 10... Bb4 {[%clk 0:02:48]} 11. Bd2
{[%clk 0:02:27.8]} 11... Bxc2 {[%clk 0:02:48]} 12. O-O {[%clk 0:02:23]} 12...
Bg6 {[%clk 0:02:41.5]} 13. a3 {[%clk 0:02:15.3]} 13... Bxc3 {[%clk 0:02:27.7]}
14. Bxc3 {[%clk 0:02:15.4]} 14... Qe4 {[%clk 0:02:28.4]} 15. Qxe4 {[%clk
0:02:04.2]} 15... Bxe4 {[%clk 0:02:29.3]} 16. b4 {[%clk 0:01:52.2]} 16... Ne7
{[%clk 0:02:21.1]} 17. Rfd1 {[%clk 0:01:50.4]} 17... Nd5 {[%clk 0:02:13.7]} 18.
Bxd5 {[%clk 0:01:50.5]} 18... Bxd5 {[%clk 0:01:57]} 19. Rd2 {[%clk 0:01:50.9]}
19... h5 {[%clk 0:01:56.4]} 20. h3 {[%clk 0:01:51.2]} 20... h4 {[%clk
0:01:56.6]} 21. Rad1 {[%clk 0:01:49.6]} 21... Rh5 {[%clk 0:01:54.7]} 22. Bd4
{[%clk 0:01:43.9]} 22... Rg5 {[%clk 0:01:51.1]} 23. f4 {[%clk 0:01:40.9]} 23...
Rg3 {[%clk 0:01:50.6]} 24. Ra1 {[%clk 0:01:31.3]} 24... a5 {[%clk 0:01:48.8]}
25. Bc5 {[%clk 0:01:25.5]} 25... axb4 {[%clk 0:01:43.9]} 26. Bxb4 {[%clk
0:01:25.7]} 26... b6 {[%clk 0:01:39.2]} 27. Rb2 {[%clk 0:00:57.1]} 27... c5
{[%clk 0:01:04.4]} 28. Be1 {[%clk 0:00:56.8]} 28... Rgxa3 {[%clk 0:01:05]} 29.
Rxa3 {[%clk 0:00:57.2]} 29... Rxa3 {[%clk 0:01:05.9]} 30. Rxb6 {[%clk
0:00:45.1]} 30... Ra1 {[%clk 0:01:05.3]} 31. Kf2 {[%clk 0:00:42.4]} 31... Ra2+
{[%clk 0:00:46.1]} 32. Ke3 {[%clk 0:00:42]} 32... Rxg2 {[%clk 0:00:41.9]} 33.
Bxh4 {[%clk 0:00:42.2]} 33... Rh2 {[%clk 0:00:42.3]} 34. Rb8+ {[%clk 0:00:33.2]}
34... Kd7 {[%clk 0:00:42.2]} 35. Rf8 {[%clk 0:00:32.7]} 35... Rxh3+ {[%clk
0:00:41.9]} 36. Kd2 {[%clk 0:00:31.7]} 36... Rxh4 {[%clk 0:00:38.7]} 37. Rxf7+
{[%clk 0:00:32.2]} 37... Kc6 {[%clk 0:00:39.3]} 38. Rxg7 {[%clk 0:00:32.8]}
38... Rxf4 {[%clk 0:00:39.6]} 39. Rg5 {[%clk 0:00:32.3]} 39... Rf5 {[%clk
0:00:39]} 40. Rg8 {[%clk 0:00:33]} 40... Rxe5 {[%clk 0:00:38.5]} 41. Rc8+ {[%clk
0:00:33.9]} 41... Kb5 {[%clk 0:00:38.8]} 42. Rb8+ {[%clk 0:00:34.1]} 42... Kc4
{[%clk 0:00:39]} 43. Rh8 {[%clk 0:00:35]} 43... Rg5 {[%clk 0:00:38.2]} 44. Rh4+
{[%clk 0:00:34.4]} 44... Kb5 {[%clk 0:00:38.6]} 45. Kc3 {[%clk 0:00:34.3]} 45...
e5 {[%clk 0:00:37.7]} 46. Rh8 {[%clk 0:00:34.2]} 46... Rg3+ {[%clk 0:00:37.7]}
47. Kb2 {[%clk 0:00:34.8]} 47... Kc4 {[%clk 0:00:37.4]} 48. Rh4+ {[%clk
0:00:35]} 48... e4 {[%clk 0:00:37.5]} 49. Rh2 {[%clk 0:00:35.3]} 49... Kd4
{[%clk 0:00:36.2]} 50. Rd2+ {[%clk 0:00:35.4]} 50... Rd3 {[%clk 0:00:36.8]} 51.
Rh2 {[%clk 0:00:35.8]} 51... c4 {[%clk 0:00:37.7]} 52. Kc2 {[%clk 0:00:35.5]}
52... c3 {[%clk 0:00:37.7]} 53. Rh4 {[%clk 0:00:34.8]} 53... Rd2+ {[%clk
0:00:37.2]} 54. Kc1 {[%clk 0:00:35.4]} 54... Rg2 {[%clk 0:00:36.1]} 55. Rf4
{[%clk 0:00:32.2]} 55... Kd3 {[%clk 0:00:35.3]} 56. Rf1 {[%clk 0:00:32.5]} 56...
Bb3 {[%clk 0:00:33.7]} 57. Re1 {[%clk 0:00:27.2]} 57... e3 {[%clk 0:00:33.4]}
58. Rh1 {[%clk 0:00:25.3]} 58... Ra2 {[%clk 0:00:31.5]} 59. Kb1 {[%clk 0:00:07]}
59... c2+ {[%clk 0:00:31]} 60. Kc1 {[%clk 0:00:07.5]} 60... Ra1+ {[%clk
0:00:30.2]} 61. Kb2 {[%clk 0:00:08.1]} 61... Rxh1 {[%clk 0:00:29.8]} 62. Kxb3
{[%clk 0:00:08.1]} 62... c1=Q {[%clk 0:00:28.8]} 63. Ka2 {[%clk 0:00:08.8]}
63... Rh2+ {[%clk 0:00:28.5]} 64. Kb3 {[%clk 0:00:09.3]} 64... Rb2+ {[%clk
0:00:28.5]} 65. Ka3 {[%clk 0:00:10]} 65... Qa1# {[%clk 0:00:29.1]} 0-1

[Event "Early-Titled-Tuesday-Blitz-May-07-2024"]
[Site "Chess.com"]
[Date "2024.05.07"]
[Round "5"]
[White "Evan_Attaker"]
[Black "IndianSchoolOfSuffering"]
[Result "1-0"]
[WhiteElo "2636"]
[BlackElo "2402"]
[TimeControl "180+1"]
[EndTime "9:00:02 PDT"]
[Termination "Evan_Attaker won by resignation"]

1. Nf3 {[%clk 0:02:58.4]} 1... d5 {[%clk 0:01:52.1]} 2. c4 {[%clk 0:02:56.3]}
2... e6 {[%clk 0:01:49.8]} 3. g3 {[%clk 0:02:56.2]} 3... Nf6 {[%clk 0:01:49.8]}
4. Bg2 {[%clk 0:02:56.8]} 4... Be7 {[%clk 0:01:50]} 5. O-O {[%clk 0:02:57.2]}
5... O-O {[%clk 0:01:50.5]} 6. d4 {[%clk 0:02:57.8]} 6... dxc4 {[%clk
0:01:50.4]} 7. Na3 {[%clk 0:02:58.5]} 7... c5 {[%clk 0:01:48.5]} 8. dxc5 {[%clk
0:02:55.6]} 8... Qxd1 {[%clk 0:01:47.5]} 9. Rxd1 {[%clk 0:02:56.1]} 9... c3
{[%clk 0:01:47.3]} 10. bxc3 {[%clk 0:02:54.8]} 10... Bxc5 {[%clk 0:01:45]} 11.
Nc4 {[%clk 0:02:55]} 11... Ne4 {[%clk 0:01:37.5]} 12. e3 {[%clk 0:02:35.5]}
12... Nxc3 {[%clk 0:01:33.2]} 13. Rd3 {[%clk 0:02:35.8]} 13... Nd5 {[%clk
0:01:31.9]} 14. a3 {[%clk 0:02:23.8]} 14... Nc6 {[%clk 0:01:31.4]} 15. Bb2
{[%clk 0:02:19.7]} 15... b6 {[%clk 0:01:31]} 16. Nfe5 {[%clk 0:02:15.4]} 16...
Nxe5 {[%clk 0:01:29.8]} 17. Nxe5 {[%clk 0:02:16.3]} 17... Ba6 {[%clk 0:01:29]}
18. Rd2 {[%clk 0:02:16.6]} 18... Rac8 {[%clk 0:01:13.8]} 19. Bxd5 {[%clk
0:02:05.5]} 19... Rfd8 {[%clk 0:00:59.3]} 20. Bc4 {[%clk 0:01:41.6]} 20... Rxd2
{[%clk 0:00:42.7]} 21. Bxa6 {[%clk 0:01:41]} 21... Rcd8 {[%clk 0:00:39.2]} 22.
Nc4 {[%clk 0:01:39.2]} 22... Rd1+ {[%clk 0:00:36.8]} 23. Rxd1 {[%clk 0:01:38.8]}
23... Rxd1+ {[%clk 0:00:37.4]} 24. Kg2 {[%clk 0:01:39.5]} 24... f6 {[%clk
0:00:32.5]} 25. a4 {[%clk 0:01:38.3]} 25... Kf7 {[%clk 0:00:32.1]} 26. Bb5
{[%clk 0:01:34.5]} 26... Rb1 {[%clk 0:00:30.2]} 27. h4 {[%clk 0:01:29.9]} 27...
h5 {[%clk 0:00:27.2]} 28. Kf3 {[%clk 0:01:26.5]} 28... g6 {[%clk 0:00:27.3]} 29.
Ba3 {[%clk 0:01:20.2]} 29... Bxa3 {[%clk 0:00:23.8]} 30. Nxa3 {[%clk 0:01:21.1]}
30... Rb3 {[%clk 0:00:23.2]} 31. Nc4 {[%clk 0:01:20.1]} 31... Ke7 {[%clk
0:00:23.3]} 32. g4 {[%clk 0:01:15.9]} 32... hxg4+ {[%clk 0:00:21.8]} 33. Kxg4
{[%clk 0:01:16.8]} 33... Rb4 {[%clk 0:00:22.1]} 34. Kg3 {[%clk 0:01:12.4]} 34...
a6 {[%clk 0:00:22.3]} 35. Bxa6 {[%clk 0:01:04.1]} 35... Rxa4 {[%clk 0:00:22.4]}
36. Bb5 {[%clk 0:01:04.1]} 36... Rb4 {[%clk 0:00:22.6]} 37. Ba6 {[%clk
0:01:04.1]} 37... b5 {[%clk 0:00:21.3]} 38. Nd2 {[%clk 0:00:39.5]} 38... Kd7
{[%clk 0:00:21.4]} 39. Nf3 {[%clk 0:00:32.8]} 39... Kc7 {[%clk 0:00:21.3]} 40.
Nd4 {[%clk 0:00:30.8]} 40... Kb6 {[%clk 0:00:18.9]} 41. Bc8 {[%clk 0:00:22]}
41... e5 {[%clk 0:00:19]} 42. Nf3 {[%clk 0:00:22]} 42... Kc5 {[%clk 0:00:18.3]}
43. Nd2 {[%clk 0:00:20.5]} 43... Rb2 {[%clk 0:00:18]} 44. Ne4+ {[%clk
0:00:20.9]} 44... Kc6 {[%clk 0:00:15.7]} 45. Nxf6 {[%clk 0:00:21.3]} 45... b4
{[%clk 0:00:16.3]} 46. Ng4 {[%clk 0:00:19.8]} 46... Rc2 {[%clk 0:00:15.9]} 47.
Be6 {[%clk 0:00:11]} 47... Kd6 {[%clk 0:00:15.8]} 48. Bf7 {[%clk 0:00:11.4]}
48... Rc3 {[%clk 0:00:15.2]} 49. Bxg6 {[%clk 0:00:11.7]} 49... b3 {[%clk
0:00:15.5]} 50. h5 {[%clk 0:00:12.3]} 50... b2 {[%clk 0:00:14.8]} 51. h6 {[%clk
0:00:12.8]} 51... Rc8 {[%clk 0:00:12.8]} 52. h7 {[%clk 0:00:12.9]} 52... Ke6
{[%clk 0:00:13.3]} 53. Kf3 {[%clk 0:00:12.4]} 53... Rf8+ {[%clk 0:00:12.2]} 54.
Kg3 {[%clk 0:00:11.5]} 54... Ke7 {[%clk 0:00:11.8]} 55. Bb1 {[%clk 0:00:11.9]}
55... Rh8 {[%clk 0:00:12.1]} 56. Nxe5 {[%clk 0:00:11]} 56... Kf8 {[%clk
0:00:12.9]} 57. Ng6+ {[%clk 0:00:10.8]} 57... Kg7 {[%clk 0:00:13.8]} 58. Nxh8
{[%clk 0:00:11.4]} 58... Kxh8 {[%clk 0:00:14.2]} 59. Kf4 {[%clk 0:00:11.8]}
59... Kg7 {[%clk 0:00:15.1]} 60. Ke5 {[%clk 0:00:12.7]} 60... Kh8 {[%clk
0:00:16]} 61. Kd4 {[%clk 0:00:13.6]} 61... Kg7 {[%clk 0:00:16.9]} 62. Kc3 {[%clk
0:00:14.5]} 62... Kh8 {[%clk 0:00:17.8]} 63. Kxb2 {[%clk 0:00:15.4]} 63... Kg7
{[%clk 0:00:18.7]} 64. Kc3 {[%clk 0:00:16.3]} 64... Kh8 {[%clk 0:00:19.6]} 65.
Kd4 {[%clk 0:00:17.2]} 65... Kg7 {[%clk 0:00:20.5]} 66. e4 {[%clk 0:00:18.1]}
66... Kh8 {[%clk 0:00:21.4]} 67. f4 {[%clk 0:00:19]} 1-0

[Event "Early-Titled-Tuesday-Blitz-May-07-2024"]
[Site "Chess.com"]
[Date "2024.05.07"]
[Round "5"]
[White "glebus008"]
[Black "FoggyMorning"]
[Result "0-1"]
[WhiteElo "2334"]
[BlackElo "2620"]
[TimeControl "180+1"]
[EndTime "9:00:03 PDT"]
[Termination "FoggyMorning won by checkmate"]

1. a3 {[%clk 0:01:53.9]} 1... d5 {[%clk 0:02:58.1]} 2. d4 {[%clk 0:01:52.5]}
2... Nf6 {[%clk 0:02:57.8]} 3. Nf3 {[%clk 0:01:52.1]} 3... e6 {[%clk 0:02:53.4]}
4. e3 {[%clk 0:01:51.2]} 4... b6 {[%clk 0:02:53.1]} 5. b3 {[%clk 0:01:48.8]}
5... Bb7 {[%clk 0:02:53.7]} 6. Bb2 {[%clk 0:01:49.1]} 6... Bd6 {[%clk
0:02:51.6]} 7. Bd3 {[%clk 0:01:48.8]} 7... c5 {[%clk 0:02:49.3]} 8. O-O {[%clk
0:01:46]} 8... Nc6 {[%clk 0:02:47.2]} 9. Ne5 {[%clk 0:01:45.4]} 9... O-O {[%clk
0:02:44.7]} 10. f4 {[%clk 0:01:45]} 10... Ne7 {[%clk 0:02:45.3]} 11. Nd2 {[%clk
0:01:40.7]} 11... Rc8 {[%clk 0:02:40.6]} 12. Qf3 {[%clk 0:01:35.3]} 12... c4
{[%clk 0:01:49.3]} 13. bxc4 {[%clk 0:01:25.9]} 13... dxc4 {[%clk 0:01:50.2]} 14.
Qxb7 {[%clk 0:01:25.8]} 14... cxd3 {[%clk 0:01:50.7]} 15. cxd3 {[%clk 0:01:26]}
15... Ned5 {[%clk 0:01:42.3]} 16. Ndc4 {[%clk 0:01:16]} 16... Bb8 {[%clk
0:01:26.6]} 17. Nc6 {[%clk 0:01:12.3]} 17... Qe8 {[%clk 0:00:55.4]} 18. Nxb8
{[%clk 0:01:07.5]} 18... Rxb8 {[%clk 0:00:56.3]} 19. Qxa7 {[%clk 0:01:06.3]}
19... b5 {[%clk 0:00:56.7]} 20. Ne5 {[%clk 0:00:54.4]} 20... Nxe3 {[%clk
0:00:55.7]} 21. Rfc1 {[%clk 0:00:49.5]} 21... Nfd5 {[%clk 0:00:51]} 22. Nc6
{[%clk 0:00:46.9]} 22... Rc8 {[%clk 0:00:47.9]} 23. Qb7 {[%clk 0:00:42.6]} 23...
Rc7 {[%clk 0:00:44.8]} 24. Qxb5 {[%clk 0:00:41.5]} 24... Nxf4 {[%clk 0:00:41.2]}
25. Qe5 {[%clk 0:00:30.1]} 25... Ne2+ {[%clk 0:00:38.6]} 26. Kh1 {[%clk
0:00:26]} 26... Nxc1 {[%clk 0:00:29.6]} 27. Qxc7 {[%clk 0:00:19]} 27... Nxd3
{[%clk 0:00:29.4]} 28. Ne7+ {[%clk 0:00:16.2]} 28... Kh8 {[%clk 0:00:29.4]} 29.
Bc3 {[%clk 0:00:17.1]} 29... Nf2+ {[%clk 0:00:20.3]} 30. Kg1 {[%clk 0:00:16.6]}
30... Ne4 {[%clk 0:00:21.2]} 31. Qe5 {[%clk 0:00:15.5]} 31... Nxc3 {[%clk
0:00:19.1]} 32. Qxe3 {[%clk 0:00:14.9]} 32... Nb5 {[%clk 0:00:13.6]} 33. Qb3
{[%clk 0:00:12.3]} 33... Nxd4 {[%clk 0:00:12.1]} 34. Qb7 {[%clk 0:00:12.1]}
34... Nf5 {[%clk 0:00:09.9]} 35. Nxf5 {[%clk 0:00:11.7]} 35... exf5 {[%clk
0:00:10.8]} 36. Kh1 {[%clk 0:00:11.4]} 36... Qe5 {[%clk 0:00:10.6]} 37. Rb1
{[%clk 0:00:10.6]} 37... h5 {[%clk 0:00:07.1]} 38. h3 {[%clk 0:00:10.6]} 38...
Qe6 {[%clk 0:00:04.3]} 39. a4 {[%clk 0:00:10.2]} 39... Re8 {[%clk 0:00:03.3]}
40. a5 {[%clk 0:00:10.1]} 40... Re7 {[%clk 0:00:03.8]} 41. Qb8+ {[%clk
0:00:10.1]} 41... Kh7 {[%clk 0:00:04.4]} 42. Qb5 {[%clk 0:00:08.8]} 42... Ra7
{[%clk 0:00:03]} 43. Ra1 {[%clk 0:00:07.1]} 43... Ra6 {[%clk 0:00:03.3]} 44. Rb1
{[%clk 0:00:06.4]} 44... g6 {[%clk 0:00:03.6]} 45. Kh2 {[%clk 0:00:06]} 45...
Qd6+ {[%clk 0:00:02.9]} 46. Kh1 {[%clk 0:00:06]} 46... Ra8 {[%clk 0:00:02.2]}
47. Kg1 {[%clk 0:00:04.8]} 47... Qc7 {[%clk 0:00:02]} 48. Ra1 {[%clk 0:00:03.7]}
48... Rb8 {[%clk 0:00:02.5]} 49. Kf1 {[%clk 0:00:03.6]} 49... Qc3 {[%clk
0:00:01.8]} 50. a6 {[%clk 0:00:04.5]} 50... Qxa1+ {[%clk 0:00:01.9]} 51. Kf2
{[%clk 0:00:04.5]} 51... Rxb5 {[%clk 0:00:02.5]} 52. a7 {[%clk 0:00:02.9]} 52...
Qxa7+ {[%clk 0:00:03]} 53. Kg3 {[%clk 0:00:03.6]} 53... Rb3+ {[%clk 0:00:03.3]}
54. Kh2 {[%clk 0:00:04.5]} 54... Qc7+ {[%clk 0:00:03.5]} 55. Kh1 {[%clk
0:00:05.4]} 55... Rb1# {[%clk 0:00:03.7]} 0-1